[Event "FIDE Womens Grand Swiss 2021"]
[Site "Riga"]
[Date "2021.10.30"]
[Round "4.25"]
[White "Cori T., Deysi"]
[Black "February, Jesse Nikki"]
[Result "1-0"]
[ECO "D15"]
[WhiteElo "2382"]
[BlackElo "1857"]
[Annotator "NA"]
[PlyCount "107"]
[EventDate "2021.10.27"]
[EventType "swiss"]
[EventCountry "LAT"]
[Tiebreak "Cut1 Buchholz+Sonneborn-Berger (Swiss)"]
[SourceTitle "playchess.com"]
[Source "ChessBase"]
[SourceQuality "1"]
[TimeControl "40/6000+30:20/3000+30:900+30"]

1. d4 {[%emt 0:10:03]} d5 {[%emt 0:10:15]} 2. c4 {[%emt 0:00:07]} c6 {[%emt 0:
00:33]} 3. Nc3 {[%emt 0:00:06]} Nf6 {[%emt 0:00:46]} 4. Nf3 {[%emt 0:00:03]}
Bf5 {[%emt 0:01:57]} 5. Qb3 {[%emt 0:03:52]} Qb6 {[%emt 0:01:04]} 6. c5 {
[%emt 0:00:31]} Qxb3 {[%emt 0:00:53]} 7. axb3 {[%emt 0:00:02]} Na6 {[%emt 0:04:
31]} 8. h3 {[%emt 0:03:52]} Nb4 {[%emt 0:04:42]} 9. Ra4 {[%emt 0:00:24]} a5 {
[%emt 0:04:33]} 10. Bf4 {[%emt 0:00:42]} Ne4 {[%emt 0:01:38]} 11. e3 {[%emt 0:
03:34]} Nxc3 {[%emt 0:06:00]} 12. bxc3 {[%emt 0:00:20]} Nd3+ {[%emt 0:00:18]}
13. Bxd3 {[%emt 0:02:07]} Bxd3 {[%emt 0:00:11]} 14. Kd2 {[%emt 0:05:23]} Bb5 {
[%emt 0:01:23]} 15. Ra3 {[%emt 0:00:49]} a4 {[%emt 0:08:43]} 16. bxa4 {[%emt 0:
02:01]} Ba6 {[%emt 0:01:27]} 17. Rb1 {[%emt 0:01:37]} f6 {[%emt 0:02:30]} 18.
Rab3 {[%emt 0:10:25]} g5 {[%emt 0:03:09]} 19. Bg3 {[%emt 0:00:25]} Kf7 {
[%emt 0:01:10]} 20. Kc2 {[%emt 0:03:39]} Bg7 {[%emt 0:03:52]} 21. Nd2 {[%emt 0:
04:00]} Rhe8 {[%emt 0:02:44]} 22. Rb6 {[%emt 0:03:44]} e5 {[%emt 0:03:10]} 23.
R1b4 {[%emt 0:00:31]} f5 {[%emt 0:02:01]} 24. Bxe5 {[%emt 0:01:57]} Bxe5 {
[%emt 0:02:05]} 25. dxe5 {[%emt 0:00:02]} Ke6 {[%emt 0:01:46]} 26. Nf3 {
[%emt 0:08:47]} Rg8 {[%emt 0:00:19]} 27. g3 {[%emt 0:01:18]} g4 {[%emt 0:01:42]
} 28. Nd4+ {[%emt 0:00:05]} Kxe5 {[%emt 0:01:03]} 29. h4 {[%emt 0:00:04]} Rg7 {
[%emt 0:01:33]} 30. Kd2 {[%emt 0:14:37]} h5 {[%emt 0:01:58]} 31. Nc2 {[%emt 0:
10:11]} Rf7 {[%emt 0:03:40]} 32. Nd4 {[%emt 0:04:24]} Rg7 {[%emt 0:00:42]} 33.
Rb1 {[%emt 0:06:19]} Rf7 {[%emt 0:02:10]} 34. a5 {[%emt 0:00:48]} Rg7 {[%emt 0:
00:33]} 35. R6b4 {[%emt 0:03:16]} Rd7 {[%emt 0:01:32]} 36. Kc2 {[%emt 0:02:16]}
Rf7 {[%emt 0:01:26]} 37. Ra1 {[%emt 0:01:29]} Rg7 {[%emt 0:01:35]} 38. Nb3 {
[%emt 0:00:42]} Rf7 {[%emt 0:01:29]} 39. Rf4 {[%emt 0:01:32]} Bc4 {[%emt 0:01:
51]} 40. Nd2 {[%emt 0:00:02]} Ba6 {[%emt 0:00:18]} 41. Kb3 {[%emt 0:52:23]} Re7
{[%emt 0:52:49]} 42. Kb4 {[%emt 0:00:38]} Kf6 {[%emt 0:02:58]} 43. Rd4 {
[%emt 0:01:11]} Re6 {[%emt 0:02:08]} 44. Rb1 {[%emt 0:00:00]} Re7 {[%emt 0:00:
00]} 45. Rd1 {[%emt 0:00:00]} Be2 {[%emt 0:00:00]} 46. Rc1 {[%emt 0:00:00]} Re6
{[%emt 0:00:00]} 47. c4 {[%emt 0:00:00]} dxc4 {[%emt 0:00:00]} 48. Nxc4 {
[%emt 0:00:00]} Bxc4 {[%emt 0:00:00]} 49. Rcxc4 {[%emt 0:00:00]} Rae8 {[%emt 0:
00:00]} 50. Rd7 {[%emt 0:00:00]} R8e7 {[%emt 0:00:00]} 51. Rcd4 {[%emt 0:00:00]
} Re4 {[%emt 0:00:00]} 52. Rxe7 {[%emt 0:00:00]} Kxe7 {[%emt 0:00:00]} 53.
Rxe4+ {[%emt 0:00:00]} fxe4 {[%emt 0:00:00]} 54. a6 {[%emt 0:00:00]} 1-0

[Event "FIDE Womens Grand Swiss 2021"]
[Site "Riga"]
[Date "2021.10.31"]
[Round "5.5"]
[White "Javakhishvili, Lela"]
[Black "Paehtz, Elisabeth"]
[Result "0-1"]
[ECO "E92"]
[WhiteElo "2446"]
[BlackElo "2475"]
[Annotator "ChessBase"]
[PlyCount "149"]
[EventDate "2021.10.27"]
[EventType "swiss"]
[EventCountry "LAT"]
[Tiebreak "Cut1 Buchholz+Sonneborn-Berger (Swiss)"]
[SourceTitle "playchess.com"]
[Source "ChessBase"]
[SourceQuality "1"]
[TimeControl "40/6000+30:20/3000+30:900+30"]

1. d4 {[%emt 0:10:06]} Nf6 {[%emt 0:10:04]} 2. c4 {[%emt 0:00:10]} g6 {[%emt 0:
00:03]} 3. Nc3 {[%emt 0:00:26]} Bg7 {[%emt 0:00:04]} 4. e4 {[%emt 0:00:07]} d6
{[%emt 0:00:02]} 5. Nf3 {[%emt 0:00:07]} O-O {[%emt 0:00:06]} 6. Be2 {[%emt 0:
00:23]} e5 {[%emt 0:00:04]} 7. Be3 {[%emt 0:00:05]} Qe8 {[%emt 0:00:03]} 8.
dxe5 {[%emt 0:00:51]} Ng4 {[%emt 0:00:05]} 9. Bg5 {[%emt 0:06:20]} Nxe5 {
[%emt 0:00:20]} 10. Nd5 {[%emt 0:00:15]} Nxf3+ {[%emt 0:00:18]} 11. gxf3 {
[%emt 0:00:04]} f6 {[%emt 0:00:20]} 12. Bd2 {[%emt 0:02:13]} Rf7 {[%emt 0:02:
50]} 13. Bc3 {[%emt 0:01:05]} f5 {[%emt 0:11:03]} 14. Bxg7 {[%emt 0:09:32]}
Kxg7 {[%emt 0:00:06]} 15. Qc2 {[%emt 0:02:50]} c6 {[%emt 0:26:24]} 16. Nc3 {
[%emt 0:00:47]} Qe5 {[%emt 0:00:06]} 17. h4 {[%emt 0:01:26]} fxe4 {[%emt 0:04:
48]} 18. Qxe4 {[%emt 0:07:56]} Bf5 {[%emt 0:02:27]} 19. Qxe5+ {[%emt 0:04:44]}
dxe5 {[%emt 0:00:04]} 20. O-O-O {[%emt 0:00:41]} Na6 {[%emt 0:06:15]} 21. Rhe1
{[%emt 0:11:07]} Raf8 {[%emt 0:11:44]} 22. Bf1 {[%emt 0:02:14]} Re7 {[%emt 0:
06:16]} 23. Re3 {[%emt 0:01:51]} Rfe8 {[%emt 0:00:31]} 24. Bd3 {[%emt 0:03:24]}
Bxd3 {[%emt 0:03:12]} 25. Rdxd3 {[%emt 0:00:22]} Nc5 {[%emt 0:00:05]} 26. Rd1 {
[%emt 0:02:10]} a5 {[%emt 0:00:46]} 27. Ne4 {[%emt 0:01:20]} Nxe4 {[%emt 0:00:
26]} 28. Rxe4 {[%emt 0:00:06]} Rf8 {[%emt 0:03:04]} 29. Rd3 {[%emt 0:00:25]}
Ref7 {[%emt 0:07:12]} 30. Rb3 {[%emt 0:05:53]} a4 {[%emt 0:05:22]} 31. Rb4 {
[%emt 0:01:21]} Rd7 {[%emt 0:04:01]} 32. Re3 {[%emt 0:04:19]} Rf4 {[%emt 0:00:
32]} 33. Rxa4 {[%emt 0:00:17]} Rxh4 {[%emt 0:00:31]} 34. Rxe5 {[%emt 0:04:09]}
Rf4 {[%emt 0:02:19]} 35. Re3 {[%emt 0:04:45]} h5 {[%emt 0:00:19]} 36. b3 {
[%emt 0:02:14]} h4 {[%emt 0:03:13]} 37. Ra8 {[%emt 0:00:10]} h3 {[%emt 0:01:11]
} 38. Ree8 {[%emt 0:01:01]} Rxf3 {[%emt 0:00:59]} 39. Rh8 {[%emt 0:00:40]} Kf6
{[%emt 0:01:08]} 40. Raf8+ {[%emt 0:01:33]} Rf7 {[%emt 0:00:04]} 41. Kd1 {
[%emt 0:51:53]} Rd3+ {[%emt 0:38:11]} 42. Ke2 {[%emt 0:00:00]} Rxf8 {[%emt 0:
00:13]} 43. Rxf8+ {[%emt 0:00:00]} Kg7 {[%emt 0:00:01]} 44. Rf4 {[%emt 0:00:00]
} g5 {[%emt 0:00:43]} 45. Rf3 {[%emt 0:00:00]} h2 {[%emt 0:02:09]} 46. Rxd3 {
[%emt 0:00:00]} h1=Q {[%emt 0:00:06]} 47. Rd7+ {[%emt 0:00:00]} Kf6 {[%emt 0:
00:09]} 48. Rxb7 {[%emt 0:00:00]} Qe4+ {[%emt 0:00:39]} 49. Kf1 {[%emt 0:00:00]
} Qb1+ {[%emt 0:01:03]} 50. Kg2 {[%emt 0:00:00]} Qxa2 {[%emt 0:00:17]} 51. Rc7
{[%emt 0:00:00]} Qa8 {[%emt 0:01:26]} 52. Rd7 {[%emt 0:00:00]} Qe8 {[%emt 0:06:
15]} 53. Rd3 {[%emt 0:00:45]} Qe4+ {[%emt 0:00:12]} 54. Rf3+ {[%emt 0:00:02]}
Ke5 {[%emt 0:01:19]} 55. Kg3 {[%emt 0:00:03]} Qh4+ {[%emt 0:00:18]} 56. Kg2 {
[%emt 0:00:05]} Kd4 {[%emt 0:00:17]} 57. Re3 {[%emt 0:04:42]} Qf4 {[%emt 0:00:
32]} 58. Rg3 {[%emt 0:00:27]} Kc5 {[%emt 0:00:24]} 59. Re3 {[%emt 0:00:53]} Kb4
{[%emt 0:00:05]} 60. Rg3 {[%emt 0:00:16]} c5 {[%emt 0:00:22]} 61. Rh3 {[%emt 0:
16:01]} Qe4+ {[%emt 0:15:26]} 62. Kh2 {[%emt 0:00:16]} Qc2 {[%emt 0:00:31]} 63.
Kg2 {[%emt 0:00:12]} Qxb3 {[%emt 0:01:10]} 64. Rxb3+ {[%emt 0:00:05]} Kxb3 {
[%emt 0:00:03]} 65. Kg3 {[%emt 0:00:06]} Kxc4 {[%emt 0:00:03]} 66. Kg4 {
[%emt 0:00:03]} Kd4 {[%emt 0:01:24]} 67. Kxg5 {[%emt 0:00:07]} c4 {[%emt 0:00:
01]} 68. f4 {[%emt 0:00:11]} c3 {[%emt 0:00:02]} 69. f5 {[%emt 0:00:03]} c2 {
[%emt 0:00:05]} 70. f6 {[%emt 0:00:03]} c1=Q+ {[%emt 0:00:03]} 71. Kg6 {
[%emt 0:00:02]} Qg1+ {[%emt 0:00:22]} 72. Kh7 {[%emt 0:00:12]} Qh2+ {[%emt 0:
00:05]} 73. Kg8 {[%emt 0:00:07]} Qg3+ {[%emt 0:00:18]} 74. Kf8 {[%emt 0:00:11]}
Ke5 {[%emt 0:00:56]} 75. f7 {[%emt 0:00:02]} 0-1

[Event "FIDE Womens Grand Swiss 2021"]
[Site "Riga"]
[Date "2021.10.31"]
[Round "5.8"]
[White "Gunina, Valentina"]
[Black "Girya, Olga"]
[Result "1/2-1/2"]
[ECO "D53"]
[WhiteElo "2462"]
[BlackElo "2410"]
[Annotator "ChessBase"]
[PlyCount "57"]
[EventDate "2021.10.27"]
[EventType "swiss"]
[EventCountry "LAT"]
[Tiebreak "Cut1 Buchholz+Sonneborn-Berger (Swiss)"]
[SourceTitle "playchess.com"]
[Source "ChessBase"]
[SourceQuality "1"]
[TimeControl "40/6000+30:20/3000+30:900+30"]

1. d4 {[%emt 0:10:07]} Nf6 {[%emt 0:10:08]} 2. c4 {[%emt 0:00:19]} e6 {[%emt 0:
00:07]} 3. Nf3 {[%emt 0:00:07]} d5 {[%emt 0:00:11]} 4. Nc3 {[%emt 0:00:08]} Be7
{[%emt 0:00:19]} 5. Bg5 {[%emt 0:00:56]} h6 {[%emt 0:00:11]} 6. Bh4 {[%emt 0:
00:09]} dxc4 {[%emt 0:00:17]} 7. e3 {[%emt 0:00:51]} c5 {[%emt 0:00:11]} 8.
Bxc4 {[%emt 0:00:59]} cxd4 {[%emt 0:00:11]} 9. Nxd4 {[%emt 0:00:36]} Bd7 {
[%emt 0:00:26]} 10. O-O {[%emt 0:02:38]} Nc6 {[%emt 0:00:08]} 11. Rc1 {[%emt 0:
03:20]} O-O {[%emt 0:05:52]} 12. Bg3 {[%emt 0:02:55]} Nxd4 {[%emt 0:02:33]} 13.
Qxd4 {[%emt 0:00:06]} Bc6 {[%emt 0:01:09]} 14. Ne2 {[%emt 0:06:47]} Ne4 {
[%emt 0:06:20]} 15. Be5 {[%emt 0:00:39]} Bc5 {[%emt 0:14:29]} 16. Qxd8 {
[%emt 0:02:02]} Rfxd8 {[%emt 0:03:25]} 17. Nd4 {[%emt 0:10:42]} Bxd4 {[%emt 0:
17:42]} 18. Bxd4 {[%emt 0:01:12]} Nd2 {[%emt 0:00:05]} 19. Rfe1 {[%emt 0:00:06]
} Nxc4 {[%emt 0:00:10]} 20. Rxc4 {[%emt 0:00:05]} Bd5 {[%emt 0:01:06]} 21. Ra4
{[%emt 0:04:07]} a6 {[%emt 0:00:51]} 22. Bc3 {[%emt 0:00:13]} f6 {[%emt 0:10:
07]} 23. f3 {[%emt 0:03:17]} e5 {[%emt 0:00:52]} 24. Kf2 {[%emt 0:02:13]} Bc6 {
[%emt 0:03:31]} 25. Rc4 {[%emt 0:00:04]} Bd5 {[%emt 0:01:41]} 26. Ra4 {[%emt 0:
00:05]} Bc6 {[%emt 0:07:22]} 27. Rc4 {[%emt 0:01:32]} Bd5 {[%emt 0:00:16]} 28.
Ra4 {[%emt 0:00:07]} Bc6 {[%emt 0:00:04]} 29. Rc4 {[%emt 0:00:33]} 1/2-1/2

[Event "FIDE Womens Grand Swiss 2021"]
[Site "Riga"]
[Date "2021.10.31"]
[Round "5.9"]
[White "Badelka, Olga"]
[Black "Sargsyan, Anna M."]
[Result "1-0"]
[ECO "C76"]
[WhiteElo "2438"]
[BlackElo "2402"]
[Annotator "NA"]
[PlyCount "57"]
[EventDate "2021.10.27"]
[EventType "swiss"]
[EventCountry "LAT"]
[Tiebreak "Cut1 Buchholz+Sonneborn-Berger (Swiss)"]
[SourceTitle "playchess.com"]
[Source "ChessBase"]
[SourceQuality "1"]
[TimeControl "40/6000+30:20/3000+30:900+30"]

1. e4 {[%emt 0:10:05]} e5 {[%emt 0:10:52]} 2. Nf3 {[%emt 0:00:12]} Nc6 {
[%emt 0:00:08]} 3. Bb5 {[%emt 0:00:09]} a6 {[%emt 0:00:09]} 4. Ba4 {[%emt 0:00:
06]} d6 {[%emt 0:00:14]} 5. O-O {[%emt 0:03:03]} Bd7 {[%emt 0:02:03]} 6. c3 {
[%emt 0:01:54]} g6 {[%emt 0:01:21]} 7. d4 {[%emt 0:01:16]} Bg7 {[%emt 0:00:24]}
8. Re1 {[%emt 0:01:58]} Nge7 {[%emt 0:01:00]} 9. Be3 {[%emt 0:02:36]} O-O {
[%emt 0:00:34]} 10. Nbd2 {[%emt 0:01:01]} h6 {[%emt 0:02:48]} 11. Bc2 {[%emt 0:
09:48]} exd4 {[%emt 0:14:11]} 12. cxd4 {[%emt 0:00:43]} g5 {[%emt 0:10:28]} 13.
d5 {[%emt 0:05:04]} Ne5 {[%emt 0:06:18]} 14. Nxe5 {[%emt 0:04:45]} dxe5 {
[%emt 0:00:22]} 15. Rc1 {[%emt 0:02:52]} Ng6 {[%emt 0:00:15]} 16. Nb3 {[%emt 0:
07:47]} b6 {[%emt 0:03:15]} 17. Bd3 {[%emt 0:03:45]} Ra7 {[%emt 0:01:55]} 18.
Na5 {[%emt 0:02:09]} Ne7 {[%emt 0:00:08]} 19. Qe2 {[%emt 0:03:36]} Ra8 {
[%emt 0:18:47]} 20. Nc6 {[%emt 0:03:51]} Bxc6 {[%emt 0:05:10]} 21. dxc6 {
[%emt 0:00:04]} Qc8 {[%emt 0:04:42]} 22. Bc4 {[%emt 0:02:06]} Kh8 {[%emt 0:01:
28]} 23. Red1 {[%emt 0:07:40]} f5 {[%emt 0:00:36]} 24. Rd7 {[%emt 0:01:40]}
Nxc6 {[%emt 0:00:46]} 25. Be6 {[%emt 0:00:37]} Nd8 {[%emt 0:00:06]} 26. exf5 {
[%emt 0:09:10]} Nxe6 {[%emt 0:01:24]} 27. fxe6 {[%emt 0:00:03]} c5 {[%emt 0:01:
17]} 28. Bxg5 {[%emt 0:00:30]} Qe8 {[%emt 0:03:27]} 29. Bxh6 {[%emt 0:01:11]}
1-0

[Event "FIDE Womens Grand Swiss 2021"]
[Site "Riga"]
[Date "2021.10.31"]
[Round "5.13"]
[White "Munguntuul, Batkhuyag"]
[Black "Padmini, Rout"]
[Result "1-0"]
[ECO "B38"]
[WhiteElo "2433"]
[BlackElo "2380"]
[Annotator "NA"]
[PlyCount "97"]
[EventDate "2021.10.27"]
[EventType "swiss"]
[EventCountry "LAT"]
[Tiebreak "Cut1 Buchholz+Sonneborn-Berger (Swiss)"]
[SourceTitle "playchess.com"]
[Source "ChessBase"]
[SourceQuality "1"]
[TimeControl "40/6000+30:20/3000+30:900+30"]

1. e4 {[%emt 0:10:04]} c5 {[%emt 0:10:36]} 2. Nf3 {[%emt 0:00:05]} Nc6 {
[%emt 0:00:09]} 3. d4 {[%emt 0:00:07]} cxd4 {[%emt 0:00:05]} 4. Nxd4 {[%emt 0:
00:05]} g6 {[%emt 0:00:15]} 5. c4 {[%emt 0:00:47]} Bg7 {[%emt 0:00:18]} 6. Be3
{[%emt 0:00:18]} Nf6 {[%emt 0:00:09]} 7. Nc3 {[%emt 0:00:10]} d6 {[%emt 0:00:
21]} 8. Be2 {[%emt 0:02:32]} O-O {[%emt 0:00:41]} 9. O-O {[%emt 0:00:18]} Bd7 {
[%emt 0:00:23]} 10. Rc1 {[%emt 0:18:45]} Nxd4 {[%emt 0:02:20]} 11. Bxd4 {
[%emt 0:00:18]} Bc6 {[%emt 0:00:08]} 12. f3 {[%emt 0:00:33]} a5 {[%emt 0:00:41]
} 13. b3 {[%emt 0:03:11]} Nd7 {[%emt 0:00:29]} 14. Be3 {[%emt 0:02:23]} Nc5 {
[%emt 0:00:17]} 15. a3 {[%emt 0:09:29]} Be5 {[%emt 0:49:36]} 16. b4 {[%emt 0:
07:46]} axb4 {[%emt 0:01:35]} 17. axb4 {[%emt 0:00:02]} Na4 {[%emt 0:00:17]}
18. Nxa4 {[%emt 0:05:50]} Bxa4 {[%emt 0:00:03]} 19. Qd3 {[%emt 0:01:12]} Bd7 {
[%emt 0:03:00]} 20. Rfd1 {[%emt 0:03:09]} Ra4 {[%emt 0:04:13]} 21. Rb1 {
[%emt 0:18:56]} Qa8 {[%emt 0:00:49]} 22. Bd4 {[%emt 0:05:08]} Ra3 {[%emt 0:01:
39]} 23. Qd2 {[%emt 0:00:17]} Ra2 {[%emt 0:03:29]} 24. Rb2 {[%emt 0:01:17]}
Rxb2 {[%emt 0:01:40]} 25. Qxb2 {[%emt 0:00:52]} Bxd4+ {[%emt 0:01:25]} 26. Qxd4
{[%emt 0:00:03]} Qa2 {[%emt 0:06:31]} 27. Bf1 {[%emt 0:04:05]} Be6 {[%emt 0:02:
32]} 28. c5 {[%emt 0:03:54]} dxc5 {[%emt 0:04:01]} 29. Qxc5 {[%emt 0:00:03]}
Qb3 {[%emt 0:01:15]} 30. Re1 {[%emt 0:01:08]} Rc8 {[%emt 0:02:02]} 31. Qxe7 {
[%emt 0:00:31]} Qc3 {[%emt 0:00:06]} 32. Rd1 {[%emt 0:00:50]} Qe3+ {[%emt 0:04:
39]} 33. Kh1 {[%emt 0:00:02]} Kg7 {[%emt 0:04:11]} 34. Qd6 {[%emt 0:04:29]} Bb3
{[%emt 0:05:52]} 35. Qe5+ {[%emt 0:05:09]} Kh6 {[%emt 0:00:43]} 36. Ra1 {
[%emt 0:00:07]} Bc4 {[%emt 0:01:03]} 37. h3 {[%emt 0:00:55]} b5 {[%emt 0:00:46]
} 38. Kh2 {[%emt 0:01:23]} Bxf1 {[%emt 0:00:33]} 39. Rxf1 {[%emt 0:00:02]} Qd3
{[%emt 0:00:28]} 40. Ra1 {[%emt 0:01:27]} Rc2 {[%emt 0:00:23]} 41. Qf4+ {
[%emt 0:52:21]} Kg7 {[%emt 0:50:22]} 42. e5 {[%emt 0:00:00]} Qd2 {[%emt 0:00:
00]} 43. Qf6+ {[%emt 0:00:00]} Kh6 {[%emt 0:00:00]} 44. Rg1 {[%emt 0:00:00]}
Qxb4 {[%emt 0:00:00]} 45. Qxf7 {[%emt 0:00:00]} Re2 {[%emt 0:00:00]} 46. Qf6 {
[%emt 0:00:00]} Rd2 {[%emt 0:00:00]} 47. f4 {[%emt 0:00:00]} Rd7 {[%emt 0:00:
10]} 48. e6 {[%emt 0:00:00]} Rd5 {[%emt 0:02:25]} 49. e7 {[%emt 0:00:00]} 1-0

[Event "FIDE Womens Grand Swiss 2021"]
[Site "Riga"]
[Date "2021.10.31"]
[Round "5.14"]
[White "Osmak, Iulija"]
[Black "Lujan, Carolina"]
[Result "1-0"]
[ECO "A16"]
[WhiteElo "2423"]
[BlackElo "2340"]
[Annotator "NA"]
[PlyCount "127"]
[EventDate "2021.10.27"]
[EventType "swiss"]
[EventCountry "LAT"]
[Tiebreak "Cut1 Buchholz+Sonneborn-Berger (Swiss)"]
[SourceTitle "playchess.com"]
[Source "ChessBase"]
[SourceQuality "1"]
[TimeControl "40/6000+30:20/3000+30:900+30"]

1. c4 {[%emt 0:10:04]} Nf6 {[%emt 0:10:11]} 2. Nc3 {[%emt 0:00:05]} d5 {
[%emt 0:00:17]} 3. cxd5 {[%emt 0:00:07]} Nxd5 {[%emt 0:00:07]} 4. Nf3 {[%emt 0:
00:09]} g6 {[%emt 0:00:43]} 5. h4 {[%emt 0:00:13]} Bg7 {[%emt 0:00:50]} 6. e4 {
[%emt 0:02:38]} Nxc3 {[%emt 0:00:10]} 7. dxc3 {[%emt 0:00:23]} Qxd1+ {[%emt 0:
00:59]} 8. Kxd1 {[%emt 0:00:03]} Bg4 {[%emt 0:09:18]} 9. Kc2 {[%emt 0:02:33]}
Nd7 {[%emt 0:03:17]} 10. Nd4 {[%emt 0:01:42]} a6 {[%emt 0:14:31]} 11. f3 {
[%emt 0:06:14]} e5 {[%emt 0:01:29]} 12. Nb3 {[%emt 0:00:44]} Be6 {[%emt 0:00:
07]} 13. Na5 {[%emt 0:07:42]} Rb8 {[%emt 0:11:52]} 14. h5 {[%emt 0:07:40]} f5 {
[%emt 0:07:19]} 15. Be3 {[%emt 0:10:38]} f4 {[%emt 0:04:42]} 16. Ba7 {[%emt 0:
00:56]} Ra8 {[%emt 0:00:24]} 17. Bf2 {[%emt 0:00:15]} Rb8 {[%emt 0:00:47]} 18.
Bc4 {[%emt 0:10:56]} Bxc4 {[%emt 0:07:02]} 19. Nxc4 {[%emt 0:00:17]} O-O {
[%emt 0:01:23]} 20. Rad1 {[%emt 0:01:40]} Rf7 {[%emt 0:00:27]} 21. hxg6 {
[%emt 0:05:31]} hxg6 {[%emt 0:00:05]} 22. Rd5 {[%emt 0:00:54]} Re8 {[%emt 0:11:
09]} 23. Rhd1 {[%emt 0:02:03]} Nb8 {[%emt 0:00:58]} 24. Bc5 {[%emt 0:07:39]}
Nc6 {[%emt 0:00:57]} 25. R5d3 {[%emt 0:02:01]} b6 {[%emt 0:02:58]} 26. Bf2 {
[%emt 0:00:33]} Bf6 {[%emt 0:01:29]} 27. b4 {[%emt 0:02:48]} g5 {[%emt 0:06:11]
} 28. a4 {[%emt 0:03:44]} Re6 {[%emt 0:09:40]} 29. b5 {[%emt 0:01:58]} axb5 {
[%emt 0:00:15]} 30. axb5 {[%emt 0:00:04]} Ne7 {[%emt 0:01:38]} 31. Rd8+ {
[%emt 0:06:42]} Kg7 {[%emt 0:00:04]} 32. Ra1 {[%emt 0:00:41]} Ng6 {[%emt 0:00:
54]} 33. Rc8 {[%emt 0:00:23]} Rd7 {[%emt 0:02:20]} 34. Ra7 {[%emt 0:01:40]}
Ree7 {[%emt 0:00:07]} 35. Nb2 {[%emt 0:09:57]} Kf7 {[%emt 0:02:08]} 36. Nd3 {
[%emt 0:01:03]} Ke6 {[%emt 0:00:03]} 37. Nb4 {[%emt 0:01:25]} Rh7 {[%emt 0:00:
14]} 38. Nd5 {[%emt 0:00:51]} Rh2 {[%emt 0:01:26]} 39. Rcxc7 {[%emt 0:03:31]}
Rxc7 {[%emt 0:00:40]} 40. Nxc7+ {[%emt 0:00:21]} Kd6 {[%emt 0:00:43]} 41. Bxb6
{[%emt 0:22:52]} g4 {[%emt 0:28:41]} 42. Kb3 {[%emt 0:06:05]} Rxg2 {[%emt 0:01:
44]} 43. fxg4 {[%emt 0:07:13]} f3 {[%emt 0:01:03]} 44. Ne8+ {[%emt 0:04:32]}
Ke6 {[%emt 0:00:05]} 45. Nxf6 {[%emt 0:01:07]} Kxf6 {[%emt 0:01:59]} 46. Bd8+ {
[%emt 0:00:06]} Ke6 {[%emt 0:00:21]} 47. Ra6+ {[%emt 0:00:06]} Kd7 {[%emt 0:06:
25]} 48. Rxg6 {[%emt 0:00:26]} Kxd8 {[%emt 0:00:47]} 49. Rf6 {[%emt 0:00:08]}
Rxg4 {[%emt 0:00:40]} 50. Rxf3 {[%emt 0:00:06]} Rxe4 {[%emt 0:00:05]} 51. c4 {
[%emt 0:00:47]} Kd7 {[%emt 0:00:59]} 52. Kb4 {[%emt 0:00:09]} Kd6 {[%emt 0:00:
50]} 53. Rd3+ {[%emt 0:00:43]} Ke6 {[%emt 0:04:05]} 54. b6 {[%emt 0:00:25]} Rh4
{[%emt 0:00:56]} 55. b7 {[%emt 0:00:11]} Rh8 {[%emt 0:00:04]} 56. c5 {[%emt 0:
01:55]} e4 {[%emt 0:00:29]} 57. Rd1 {[%emt 0:01:28]} e3 {[%emt 0:00:36]} 58.
Kb5 {[%emt 0:01:02]} e2 {[%emt 0:01:21]} 59. Re1 {[%emt 0:00:04]} Kd7 {[%emt 0:
00:05]} 60. Rxe2 {[%emt 0:00:52]} Kc7 {[%emt 0:00:13]} 61. Re7+ {[%emt 0:15:09]
} Kb8 {[%emt 0:15:11]} 62. Kb6 {[%emt 0:01:16]} Rh6+ {[%emt 0:01:21]} 63. c6 {
[%emt 0:00:25]} Re6 {[%emt 0:00:04]} 64. Re8+ {[%emt 0:00:11]} 1-0

[Event "FIDE Womens Grand Swiss 2021"]
[Site "Riga"]
[Date "2021.10.31"]
[Round "5.15"]
[White "Melia, Salome"]
[Black "Vaishali R"]
[Result "1/2-1/2"]
[ECO "B30"]
[WhiteElo "2371"]
[BlackElo "2419"]
[Annotator "NA"]
[PlyCount "50"]
[EventDate "2021.10.27"]
[EventType "swiss"]
[EventCountry "LAT"]
[Tiebreak "Cut1 Buchholz+Sonneborn-Berger (Swiss)"]
[SourceTitle "playchess.com"]
[Source "ChessBase"]
[SourceQuality "1"]
[TimeControl "40/6000+30:20/3000+30:900+30"]

1. e4 {[%emt 0:10:05]} c5 {[%emt 0:10:26]} 2. Nf3 {[%emt 0:00:08]} Nc6 {
[%emt 0:00:06]} 3. Bb5 {[%emt 0:00:36]} e6 {[%emt 0:00:13]} 4. O-O {[%emt 0:05:
06]} Nge7 {[%emt 0:00:10]} 5. Re1 {[%emt 0:00:16]} Nd4 {[%emt 0:00:34]} 6. Bf1
{[%emt 0:05:20]} Nxf3+ {[%emt 0:03:58]} 7. Qxf3 {[%emt 0:00:03]} Nc6 {[%emt 0:
01:06]} 8. b3 {[%emt 0:03:17]} Be7 {[%emt 0:17:15]} 9. Bb2 {[%emt 0:00:26]} e5
{[%emt 0:01:01]} 10. Nc3 {[%emt 0:04:22]} O-O {[%emt 0:00:49]} 11. Nd5 {
[%emt 0:00:38]} d6 {[%emt 0:00:29]} 12. Ne3 {[%emt 0:10:11]} Bg5 {[%emt 0:07:
05]} 13. Bc4 {[%emt 0:02:01]} Be6 {[%emt 0:02:31]} 14. Qd1 {[%emt 0:08:14]} Qf6
{[%emt 0:08:02]} 15. Bd5 {[%emt 0:09:27]} Qg6 {[%emt 0:02:23]} 16. c3 {[%emt 0:
04:17]} Bxd5 {[%emt 0:16:20]} 17. Nxd5 {[%emt 0:01:52]} f5 {[%emt 0:00:05]} 18.
d3 {[%emt 0:02:01]} Bh4 {[%emt 0:11:22]} 19. Re2 {[%emt 0:03:59]} fxe4 {
[%emt 0:07:59]} 20. dxe4 {[%emt 0:00:48]} Rf3 {[%emt 0:00:13]} 21. Ne3 {
[%emt 0:17:45]} Ne7 {[%emt 0:01:02]} 22. Nd5 {[%emt 0:05:28]} Nc6 {[%emt 0:01:
59]} 23. Ne3 {[%emt 0:12:16]} Ne7 {[%emt 0:00:42]} 24. Nd5 {[%emt 0:00:30]} Nc6
{[%emt 0:05:32]} 25. Ne3 {[%emt 0:00:17]} Ne7 {[%emt 0:00:07]} 1/2-1/2